bitfinex-derivatives/quotes_SOLF0:USTF0_20260310
["timestamp","ask_amount","ask_price","bid_price","bid_amount"]
[1773159043618,3.83870093,88.144,88.061,3.92768123]
[1773159043816,3.83870093,88.144,88.085,0.07327999]
[1773159044317,3.83870093,88.144,88.061,3.92768123]
[1773159044920,3.83870093,88.132,88.07,10.216]
[1773159045116,3.83870093,88.132,88.061,3.92768123]
[1773159045820,3.83870093,88.116,88.061,3.92768123]
[1773159046921,3.83870093,88.116,88.04,8.86168036]
[1773159046922,3.88805939,88.114,88.053,10.218]
[1773159047224,3.88805939,88.114,88.042,3.78607501]
[1773159047724,8.86168036,88.12,88.043,3.78607501]
[1773159048118,3.88805939,88.119,88.043,3.78607501]
[1773159049017,3.88805939,88.108,88.072,0.07203407]
[1773159049319,3.83314465,88.099,88.021,3.85540383]
[1773159049821,3.83314465,88.099,88.04,10.219]
[1773159050020,3.83314465,88.099,88.021,3.85540383]
[1773159050221,3.83314465,88.099,88.025,10.221]
[1773159050724,3.83314465,88.099,88.026,3.85540383]
[1773159051525,0.07217471,88.071,88.026,3.85540383]
[1773159052326,0.07217471,88.071,88.044,10.219]
[1773159052821,0.07217471,88.071,88.032,10.22]
[1773159053326,0.07217471,88.071,88.04,10.22]
[1773159054026,0.07217471,88.071,88.031,10.221]
[1773159055531,3.90531936,88.071,88.018,10.222]
[1773159055824,3.83314465,88.059,87.981,3.85540383]
[1773159056024,3.83314465,88.059,88.006,10.223]
[1773159056225,10.218,88.051,87.981,3.85540383]
[1773159056622,3.83314465,88.059,87.997,10.224]
[1773159057330,3.83314465,88.057,87.997,10.224]
[1773159057933,3.83314465,88.076,87.998,3.85540383]
[1773159059325,3.83314465,88.059,87.999,10.224]
[1773159060331,3.83314465,88.059,87.998,3.85540383]
[1773159060629,3.83314465,88.076,87.998,3.85540383]
[1773159061326,3.83314465,88.076,88.034,10.22]
[1773159061630,8.67127392,88.127,88.018,3.85540383]
[1773159061631,3.83314465,88.109,88.018,3.85540383]
[1773159061830,3.83314465,88.109,88.021,3.85540383]
[1773159062625,3.83314465,88.08,88.021,3.85540383]
[1773159062826,3.83314465,88.069,88.002,3.85540383]
[1773159063530,3.83314465,88.064,88.002,3.85540383]
[1773159063832,3.83314465,88.064,88.027,10.221]
[1773159064426,3.83314465,88.089,88.027,10.221]
[1773159065125,10.216,88.075,88.002,3.85540383]
[1773159065933,3.83314465,88.068,88.014,10.223]
[1773159066136,3.83314465,88.068,88.002,3.85540383]
[1773159066927,3.83314465,88.057,88.003,10.224]
[1773159067127,12.50360577,88.069,87.984,3.85540383]
[1773159067324,8.67046112,88.068,87.984,3.85540383]
[1773159067525,8.67046112,88.067,88.019,10.222]
[1773159067831,3.83314465,88.065,88.005,3.85540383]
[1773159068135,3.83314465,88.064,88.006,10.223]
[1773159068332,8.67046112,88.063,88.005,3.85540383]
[1773159068533,8.67046112,88.062,88.026,0.0718932]
[1773159068728,8.67046112,88.063,88.026,0.0718932]
[1773159068929,8.67046112,88.062,88.026,0.0718932]
[1773159069128,3.83314465,88.056,88.026,0.0718932]
[1773159069330,8.67046112,88.06,88.026,0.0718932]
[1773159069526,8.67046112,88.059,88.026,0.0718932]
[1773159069830,8.67046112,88.067,88.026,0.0718932]
[1773159070025,8.67046112,88.066,88.026,0.0718932]
[1773159070225,3.83314465,88.064,87.984,3.85540383]
[1773159070528,8.84786041,88.07,88.011,10.223]
[1773159070529,3.83314465,88.062,88.011,10.223]
[1773159070835,8.67046112,88.069,88.003,3.85540383]
[1773159071033,20.418,88.132,87.993,20.45]
[1773159071034,8.67046112,88.089,88.011,3.85540383]
[1773159071234,8.67046112,88.088,88.027,3.85540383]
[1773159071435,8.67046112,88.087,88.027,3.85540383]
[1773159071625,8.67046112,88.086,88.027,3.85540383]
[1773159071831,0.07459027,88.059,88.007,3.85540383]
[1773159072330,8.67046112,88.066,88.007,3.85540383]
[1773159072837,3.83314465,88.064,87.99,12.70326424]
[1773159073037,8.84786041,88.09,87.991,3.85540383]
[1773159073038,3.83314465,88.062,87.991,3.85540383]
[1773159073239,8.67046112,88.061,87.991,3.85540383]
[1773159073538,10.215,88.079,88.027,10.221]
[1773159073831,12.50360577,88.078,88.027,10.221]
[1773159074035,12.50360577,88.077,88.027,10.221]
[1773159074232,8.67046112,88.076,88.027,10.221]
[1773159074433,8.67046112,88.075,88.027,10.221]
[1773159074634,8.67046112,88.074,88.027,10.221]
[1773159074830,8.67046112,88.073,88.034,10.22]
[1773159075039,10.43869694,88.127,88.015,3.85540383]
[1773159075040,8.67046112,88.086,88.015,3.85540383]
[1773159075337,8.67046112,88.085,88.015,3.85540383]
[1773159075535,8.67046112,88.084,88.043,10.219]
[1773159075733,8.67046112,88.083,88.043,10.219]
[1773159075933,8.67046112,88.082,88.043,10.219]
[1773159076133,8.67046112,88.094,88.033,3.85540383]
[1773159076434,0.07312697,88.072,88.033,3.85540383]
[1773159077441,0.07312697,88.072,88.051,10.218]
[1773159077640,0.07312697,88.072,88.013,3.85540383]
[1773159078240,3.83314465,88.078,88.013,3.85540383]
[1773159078440,8.64700717,88.077,88.013,3.85540383]
[1773159078633,0.0730047,88.051,88.013,3.85540383]
[1773159079140,0.0730047,88.051,88.041,10.219]
[1773159079343,3.6820249,88.097,88.013,3.85540383]
[1773159079644,3.6820249,88.089,87.992,3.74365885]
[1773159079939,8.84786041,88.09,87.992,3.74365885]
[1773159079940,3.6820249,88.087,87.992,3.74365885]
[1773159080141,3.6820249,88.066,88.02,10.222]
[1773159080442,8.64949869,88.065,88.02,10.222]
[1773159080739,3.6820249,88.066,88.02,10.222]
[1773159080740,8.64949869,88.064,88.02,10.222]
[1773159081044,8.64949869,88.063,88.02,10.222]
[1773159081231,3.6820249,88.066,88.02,10.222]
[1773159081232,8.64949869,88.062,88.02,10.222]
[1773159081436,8.64949869,88.061,88.02,10.222]
[1773159081638,8.64949869,88.06,88.027,10.221]
[1773159081934,3.6820249,88.086,88.012,3.74365885]
[1773159082134,3.6820249,88.086,87.99,13.84786041]
[1773159082135,8.6543969,88.085,88.03,8.84786041]
[1773159082342,3.6820249,88.103,88.031,3.74365885]
[1773159082539,12.33600392,88.102,88.031,3.74365885]
[1773159082836,20.413,88.154,88.031,3.74365885]
[1773159082837,12.33600392,88.101,88.031,3.74365885]
[1773159083146,8.65417566,88.1,88.031,3.74365885]
[1773159083341,8.65417566,88.099,88.031,3.74365885]
[1773159083537,8.65417566,88.098,88.031,3.74365885]
[1773159083737,8.65417566,88.097,88.05,10.218]
[1773159083930,8.65417566,88.096,88.05,10.218]
[1773159084136,8.65417566,88.095,88.05,10.218]
[1773159084336,8.65417566,88.094,88.057,10.218]
[1773159084540,8.65417566,88.093,88.031,3.74365885]
[1773159084741,8.65417566,88.092,88.031,3.74365885]
[1773159084941,8.65417566,88.091,88.031,3.74365885]
[1773159085142,8.65417566,88.09,88.031,3.74365885]
[1773159085437,8.65417566,88.089,88.048,10.219]
[1773159085639,8.65417566,88.088,88.031,3.74365885]
[1773159085944,8.65417566,88.087,88.031,3.74365885]
[1773159086241,8.65417566,88.086,88.031,3.74365885]
[1773159086441,3.6820249,88.084,88.015,13.91170462]
[1773159086643,3.6820249,88.082,88.05,0.07183341]
[1773159086840,8.65417566,88.081,88.05,0.07183341]
[1773159087033,8.65417566,88.08,88.05,0.07183341]
[1773159087235,8.65417566,88.079,88.031,10.221]
[1773159087435,8.65417566,88.078,88.015,3.74365885]
[1773159087642,8.65417566,88.077,88.015,3.74365885]
[1773159087837,3.6820249,88.075,88.015,3.74365885]
[1773159088040,8.65417566,88.074,88.015,3.74365885]
[1773159088340,8.65417566,88.073,88.015,3.74365885]
[1773159088545,8.65417566,88.072,88.036,0.07364733]
[1773159088741,8.65417566,88.071,88.036,0.07364733]
[1773159088941,8.65417566,88.07,88.036,0.07364733]
[1773159089137,8.65417566,88.069,88.036,0.07364733]
[1773159089337,8.65417566,88.068,88.036,0.07364733]
[1773159089540,8.65417566,88.067,88.036,0.07364733]
[1773159089740,8.65417566,88.066,88.036,0.07364733]
[1773159089941,8.65417566,88.065,88.036,0.07364733]
[1773159090141,8.65417566,88.064,88.036,0.07364733]
[1773159090340,8.65417566,88.063,88.036,0.07364733]
[1773159090540,8.65417566,88.062,88.036,0.07364733]
[1773159090740,8.65417566,88.061,88.036,0.07364733]
[1773159090943,8.65417566,88.06,88.036,0.07364733]
[1773159091242,8.65417566,88.059,88.036,0.07364733]
[1773159091443,8.65417566,88.058,88.036,0.07364733]
[1773159091745,8.65417566,88.057,88.036,0.07364733]
[1773159091941,8.65417566,88.056,88.036,0.07364733]
[1773159092140,8.65417566,88.055,88.036,0.07364733]
[1773159092440,8.65417566,88.054,88.036,0.07364733]
[1773159092642,8.65417566,88.053,88.036,0.07364733]
[1773159092838,8.65417566,88.052,88.036,0.07364733]
[1773159093039,8.65417566,88.051,88.036,0.07364733]
[1773159093239,3.6820249,88.075,88.036,0.07364733]
[1773159093240,8.65417566,88.05,88.036,0.07364733]
[1773159093436,8.65417566,88.049,88.036,0.07364733]
[1773159093641,3.6820249,88.075,88.036,0.07364733]
[1773159093840,8.6810194,88.074,88.036,0.07364733]
[1773159094044,8.6810194,88.073,88.036,0.07364733]
[1773159094338,8.6810194,88.072,88.036,0.07364733]
[1773159094535,8.6810194,88.071,88.036,0.07364733]
[1773159094738,8.6810194,88.07,88.036,0.07364733]
[1773159094939,8.6810194,88.069,88.036,0.07364733]
[1773159095136,8.6810194,88.068,88.036,0.07364733]
[1773159095335,8.6810194,88.067,88.036,0.07364733]
[1773159095545,8.6810194,88.066,88.036,0.07364733]
[1773159095746,8.6810194,88.065,88.036,0.07364733]
[1773159095944,8.6810194,88.064,88.036,0.07364733]
[1773159096139,8.6810194,88.063,88.036,0.07364733]
[1773159096341,8.6810194,88.062,88.036,0.07364733]
[1773159096548,1.94e-05,88.061,88.036,0.07364733]
[1773159096846,3.6820249,88.09,88.036,0.07364733]
[1773159097048,3.6820249,88.09,88.03,3.74365885]
[1773159097243,10.215,88.083,88.033,10.22]
[1773159097441,8.84786041,88.1,88.033,10.22]
[1773159097442,3.6820249,88.082,88.033,10.22]
[1773159097950,3.6820249,88.079,88.01,3.74365885]
[1773159099249,3.6820249,88.069,88.022,10.222]
[1773159099452,3.6820249,88.069,88.01,3.74365885]
[1773159099453,3.6820249,88.069,88.036,0.07412554]
[1773159102348,13.8960249,88.084,88.036,0.07412554]
[1773159102547,3.6820249,88.083,88.036,0.07412554]
[1773159102948,3.6820249,88.083,88.031,10.22]
[1773159103152,3.6820249,88.083,88.01,3.74365885]
[1773159104353,3.6820249,88.099,88.027,3.74365885]
[1773159104648,3.6820249,88.099,88.01,8.84786041]
[1773159104649,3.6820249,88.099,88.011,13.91170462]
[1773159104854,3.6820249,88.066,88.019,10.222]
[1773159105059,3.6820249,88.066,87.994,13.91170462]
[1773159105256,3.6820249,88.049,87.973,3.74365885]
[1773159105445,3.6820249,88.031,87.973,3.74365885]
[1773159105944,3.6820249,88.031,88.002,0.07362668]
[1773159106147,3.6820249,88.065,88.02,10.222]
[1773159106350,3.6820249,88.065,88.002,0.07362668]
[1773159106644,3.6820249,88.054,88.002,0.07362668]
[1773159106848,3.6820249,88.054,87.993,10.225]
[1773159107148,3.6820249,88.054,87.985,3.78215629]
[1773159107349,4.06451309,88.051,88.0,10.224]
[1773159108548,12.69697947,88.05,88.0,10.224]
[1773159108848,4.06451309,88.048,87.985,3.78215629]
[1773159109049,8.63246638,88.047,87.985,3.78215629]
[1773159109250,4.04624064,88.045,87.985,3.78215629]
[1773159109556,4.04624064,88.043,87.985,3.78215629]
[1773159109851,8.63246638,88.042,88.0,10.224]
[1773159110050,8.63246638,88.041,88.0,10.224]
[1773159110249,8.63246638,88.04,88.0,10.224]
[1773159110444,8.63246638,88.039,88.0,10.224]
[1773159110651,4.04624064,88.043,88.0,10.224]
[1773159110652,8.63246638,88.038,88.0,10.224]
[1773159110853,8.63246638,88.037,88.0,10.224]
[1773159111149,8.63246638,88.036,88.0,10.224]
[1773159111349,8.63246638,88.035,88.008,10.223]
[1773159111549,4.04624064,88.043,88.008,10.223]
[1773159111850,8.62761533,88.042,88.008,10.223]
[1773159112151,4.04624064,88.04,87.969,13.91170462]
[1773159112356,4.04624064,88.038,87.968,3.91690997]
[1773159112655,4.04624064,88.036,87.968,3.91690997]
[1773159112855,4.04624064,88.034,87.968,3.91690997]
[1773159113055,8.84786041,88.04,87.968,3.91690997]
[1773159113056,4.04624064,88.032,87.974,10.227]
[1773159113363,4.04624064,88.03,87.974,10.227]
[1773159113650,4.04624064,88.026,87.965,10.228]
[1773159114055,4.04624064,88.019,87.951,3.91690997]
[1773159114357,4.04624064,88.015,87.963,10.228]
[1773159114553,4.04624064,88.013,87.963,10.228]
[1773159114753,14.07672166,88.059,87.951,3.91690997]
[1773159114754,8.62676035,88.012,87.976,0.07300661]
[1773159114950,12.67300099,88.011,87.976,0.07300661]
[1773159115151,4.04624064,88.009,87.976,0.07300661]
[1773159115348,4.04624064,88.007,87.976,0.07300661]
[1773159115658,8.84786041,88.02,87.951,3.91690997]
[1773159115659,4.04624064,88.005,87.951,3.91690997]
[1773159115852,4.04624064,88.003,87.951,3.91690997]
[1773159116052,8.62676035,88.002,87.951,3.91690997]
[1773159116254,8.62676035,88.001,87.951,3.91690997]
[1773159116453,8.62676035,88.0,87.952,10.23]
[1773159116654,8.62676035,87.999,87.951,3.91690997]
[1773159116855,8.62676035,87.998,87.951,3.91690997]
[1773159117055,8.62676035,87.997,87.951,3.91690997]
[1773159117252,8.62676035,88.002,87.951,3.91690997]
[1773159117448,8.62676035,88.001,87.951,3.91690997]
[1773159117654,8.62676035,88.0,87.951,3.91690997]
[1773159117854,4.04624064,87.998,87.934,3.91690997]
[1773159118157,8.8558302,88.02,87.934,3.91690997]
[1773159118158,4.04624064,87.996,87.934,3.91690997]
[1773159118357,12.67300099,87.996,87.934,3.91690997]
[1773159118658,4.04624064,87.996,87.934,3.91690997]
[1773159119155,4.04624064,87.996,87.956,0.07230446]
[1773159120651,8.59418144,88.01,87.956,3.98921443]
[1773159120850,8.59418144,88.009,87.956,3.98921443]
[1773159121049,4.04624064,88.007,87.956,0.07230446]
[1773159121249,4.04624064,87.999,87.946,10.23]
[1773159121455,4.04624064,87.999,87.935,3.91690997]
[1773159121956,4.04624064,87.999,87.953,10.23]
[1773159122347,4.04624064,87.999,87.958,0.07274034]
[1773159123159,4.04624064,87.997,87.919,3.91690997]
[1773159123354,4.04624064,87.989,87.935,10.232]
[1773159123559,4.04624064,87.989,87.919,3.91690997]
[1773159123747,4.04624064,87.989,87.91,8.8558302]
[1773159123748,4.04624064,87.989,87.936,3.91690997]
[1773159124056,8.8558302,88.02,87.936,3.91690997]
[1773159124057,4.04624064,88.018,87.936,3.91690997]
[1773159124250,4.04624064,88.016,87.936,3.91690997]
[1773159124454,4.04624064,88.014,87.936,3.91690997]
[1773159124655,4.04624064,87.998,87.936,3.91690997]
[1773159124956,0.07246347,87.985,87.936,3.91690997]
[1773159126459,0.07246347,87.985,87.946,10.23]
[1773159126660,4.11870411,87.985,87.946,10.23]
[1773159127760,4.11870411,87.985,87.938,10.231]
[1773159128058,4.11870411,87.985,87.911,3.91690997]
[1773159128059,4.04624064,87.984,87.911,3.91690997]
[1773159128264,4.04624064,87.979,87.911,3.91690997]
[1773159129158,4.04624064,87.999,87.911,3.91690997]
[1773159129559,4.04624064,87.999,87.91,8.8558302]
[1773159129560,4.04624064,87.999,87.937,3.91690997]
[1773159130060,4.04624064,87.999,87.945,10.231]
[1773159130661,4.04624064,87.997,87.953,10.23]
[1773159131159,4.04624064,87.997,87.937,3.91690997]
[1773159132465,4.04624064,87.995,87.945,10.231]
[1773159133170,4.04624064,88.012,87.937,3.91690997]
[1773159134268,4.04624064,88.01,87.937,3.91690997]
[1773159134673,4.04624064,88.0,87.95,10.23]
[1773159134971,4.04624064,88.0,87.937,3.91690997]
[1773159135358,4.04624064,87.998,87.937,3.91690997]
[1773159135563,4.04624064,88.029,87.937,3.91690997]
[1773159136366,8.8558302,88.03,87.937,3.91690997]
[1773159136367,4.04624064,88.019,87.966,10.228]
[1773159137266,8.8558302,88.03,87.952,3.91690997]
[1773159137267,4.04624064,88.008,87.952,3.91690997]
[1773159137665,4.04624064,88.008,87.961,10.229]
[1773159138271,0.07406409,87.989,87.961,10.229]
[1773159139570,0.07406409,87.989,87.931,3.70167167]
[1773159140174,4.04373953,87.993,87.931,3.70167167]
[1773159140372,4.04373953,87.993,87.953,10.23]
[1773159141072,4.04373953,87.993,87.914,3.70167167]
[1773159141265,4.04373953,87.993,87.852,27.93781957]
[1773159141266,4.04373953,87.969,87.888,3.70167167]
[1773159141470,4.04373953,87.969,87.915,10.234]
[1773159141671,3.3095836,87.96,87.915,10.234]
[1773159142060,0.07372343,87.951,87.915,10.234]
[1773159142560,3.3095836,87.95,87.9,3.3095836]
[1773159142764,3.3095836,87.95,87.901,3.70167167]
[1773159142964,0.07372343,87.951,87.901,3.70167167]
[1773159143170,0.07372343,87.951,87.88,192.27432635]
[1773159143171,0.07372343,87.951,87.921,3.70167167]
[1773159143565,0.07372343,87.951,87.928,10.233]
[1773159143771,3.3095836,87.96,87.928,10.233]
[1773159144874,4.04373953,87.979,87.935,10.232]
[1773159145073,3.3095836,87.97,87.935,10.232]
[1773159145369,0.07281034,87.953,87.904,3.70167167]
[1773159145576,3.3095836,87.95,87.915,10.234]
[1773159146174,0.07281034,87.953,87.915,10.234]
[1773159148675,0.07281034,87.953,87.88,192.27432635]
[1773159148676,3.3095836,87.94,87.906,10.235]
[1773159149175,4.04373953,87.949,87.906,10.235]
[1773159149375,3.3095836,87.92,87.88,192.27432635]
[1773159149672,3.3095836,87.91,87.86,3.3095836]
[1773159149880,3.3095836,87.91,87.856,3.70167167]
[1773159150079,3.3095836,87.91,87.85,3.3095836]
[1773159150080,3.3095836,87.89,87.84,7.01125527]
[1773159150271,3.3095836,87.89,87.84,3.70167167]
[1773159150467,3.3095836,87.89,87.84,3.3095836]
[1773159150676,4.04373953,87.916,87.861,3.70167167]
[1773159151081,4.04373953,87.916,87.864,10.24]
[1773159151082,3.3095836,87.91,87.864,10.24]
[1773159152083,3.3095836,87.9,87.861,3.70167167]
[1773159152285,3.3095836,87.9,87.853,10.241]
[1773159152776,4.04373953,87.916,87.862,3.70167167]
[1773159152973,3.3095836,87.91,87.862,3.70167167]
[1773159153174,4.04373953,87.909,87.851,10.241]
[1773159153381,3.3095836,87.9,87.851,10.241]
[1773159153586,0.07170414,87.895,87.851,10.241]
[1773159153889,3.3095836,87.89,87.848,10.242]
[1773159154183,3.3095836,87.89,87.83,3.3095836]
[1773159154383,3.3095836,87.89,87.83,7.01125527]
[1773159154780,3.3095836,87.88,87.83,7.01125527]
[1773159155181,4.04373953,87.889,87.831,3.70167167]
[1773159155379,11.20832131,87.949,87.851,3.70167167]
[1773159155380,4.04373953,87.907,87.851,3.70167167]
[1773159156387,4.04373953,87.907,87.857,10.241]
[1773159157885,4.04373953,87.907,87.868,10.239]
[1773159158082,4.04373953,87.925,87.851,3.70167167]
[1773159158687,4.04373953,87.906,87.811,3.70167167]
[1773159159491,4.04373953,87.888,87.811,3.70167167]
[1773159159679,8.87610277,87.89,87.78,8.87610277]
[1773159159680,4.04373953,87.869,87.794,3.70167167]
[1773159159884,4.04373953,87.869,87.812,10.246]
[1773159160185,4.04373953,87.869,87.794,3.70167167]
[1773159160585,4.04373953,87.865,87.811,10.246]
[1773159161382,4.04373953,87.865,87.819,10.245]
[1773159161584,4.04373953,87.865,87.794,3.70167167]
[1773159162089,4.04373953,87.865,87.833,0.07438211]
[1773159162496,4.04373953,87.859,87.777,3.70167167]
[1773159163790,4.04373953,87.857,87.798,10.248]
[1773159164496,0.07375318,87.836,87.806,10.247]
[1773159164798,0.07375318,87.836,87.794,3.70167167]
[1773159165386,0.07375318,87.836,87.801,10.247]
[1773159165585,8.87610277,87.87,87.794,3.70167167]
[1773159166092,4.04373953,87.879,87.82,3.70167167]
[1773159166484,4.04373953,87.897,87.82,3.70167167]
[1773159166887,3.84824447,87.894,87.82,3.70167167]
[1773159167087,3.84824447,87.894,87.85,0.0734255]
[1773159167993,3.84824447,87.912,87.851,3.90697271]
[1773159168198,8.87610277,87.93,87.851,3.90697271]
[1773159168199,3.84824447,87.929,87.851,3.90697271]
[1773159168696,3.84824447,87.918,87.867,10.24]
[1773159168897,3.84824447,87.918,87.851,3.90697271]
[1773159170003,4.01926175,87.916,87.851,3.90697271]
[1773159170502,4.01926175,87.901,87.821,3.80453261]
[1773159171000,4.01926175,87.901,87.844,10.242]
[1773159172099,4.01926175,87.901,87.864,0.07177219]
[1773159174796,10.236,87.9,87.864,0.07177219]
[1773159175700,4.01926175,87.892,87.839,10.243]
[1773159175905,4.01926175,87.889,87.82,3.80453261]
[1773159178008,4.01926175,87.865,87.797,3.80453261]
[1773159178209,4.01926175,87.862,87.797,3.80453261]
[1773159179400,10.241,87.86,87.804,10.247]
[1773159179606,4.01926175,87.862,87.797,3.80453261]
[1773159179908,4.01926175,87.862,87.811,10.246]
[1773159180498,0.07221876,87.845,87.816,3.80453261]
[1773159181104,4.01926175,87.879,87.816,3.80453261]
[1773159181600,10.24,87.868,87.817,10.245]
[1773159182205,10.24,87.864,87.817,10.245]
[1773159182510,0.07173213,87.851,87.817,10.245]
[1773159182812,0.07173213,87.851,87.79,8.88319881]
[1773159182813,0.07173213,87.851,87.818,3.80453261]
[1773159183016,4.01926175,87.885,87.818,3.80453261]
[1773159183214,4.01926175,87.885,87.831,10.244]
[1773159183412,8.88319881,87.91,87.818,3.80453261]
[1773159183717,4.01926175,87.92,87.854,3.80453261]
[1773159184214,4.01926175,87.92,87.865,10.24]
[1773159184412,4.01926175,87.92,87.866,3.80453261]
[1773159184607,4.01926175,87.949,87.866,3.80453261]
[1773159184812,4.01926175,87.92,87.831,3.80453261]
[1773159185213,4.01926175,87.949,87.851,3.80453261]
[1773159185516,10.233,87.927,87.872,10.239]
[1773159186919,14.25226175,87.927,87.872,10.239]
[1773159187112,4.01926175,87.927,87.879,10.238]
[1773159187313,10.232,87.936,87.879,3.80453261]
[1773159187717,10.233,87.929,87.879,3.80453261]
[1773159188112,10.233,87.929,87.899,0.07308277]
[1773159188508,4.01926175,87.946,87.899,0.07308277]
[1773159189318,10.232,87.937,87.899,0.07308277]
[1773159190118,4.01926175,87.946,87.899,0.07308277]
[1773159191116,4.01926175,87.946,87.901,10.236]
[1773159191417,4.01926175,87.969,87.901,10.236]
[1773159191818,4.01926175,87.958,87.899,0.07308277]
[1773159192122,4.01926175,87.958,87.895,3.80453261]
[1773159192521,4.01926175,87.943,87.891,10.237]
[1773159192721,8.88319881,87.97,87.899,10.236]
[1773159192722,4.01926175,87.969,87.899,10.236]
[1773159192918,4.01926175,87.969,87.918,0.07333686]
[1773159193314,4.01926175,87.969,87.876,3.80453261]
[1773159193518,4.01926175,87.949,87.841,3.80453261]
[1773159193714,4.01926175,87.929,87.841,3.80453261]
[1773159193914,4.01926175,87.929,87.856,3.80453261]
[1773159193915,10.234,87.912,87.856,3.80453261]
[1773159194117,10.234,87.912,87.81,13.99728463]
[1773159194118,4.01926175,87.912,87.838,3.80453261]
[1773159194925,0.07235896,87.884,87.838,3.80453261]
[1773159195320,0.07235896,87.884,87.841,3.80453261]
[1773159196028,10.236,87.898,87.841,3.80453261]
[1773159196418,0.0725727,87.871,87.841,3.80453261]
[1773159196924,4.01926175,87.91,87.841,3.80453261]
[1773159197122,10.236,87.901,87.85,10.242]
[1773159197327,4.01926175,87.91,87.851,3.80453261]
[1773159197821,10.236,87.902,87.853,3.80453261]
[1773159199321,10.236,87.902,87.869,0.07172971]
[1773159200724,10.235,87.911,87.869,3.89955358]
[1773159200921,3.76678423,87.929,87.869,3.89955358]
[1773159201417,10.233,87.921,87.869,3.82782387]
[1773159202015,10.234,87.914,87.869,3.82782387]
[1773159202222,3.76678423,87.929,87.869,3.82782387]
[1773159203226,10.235,87.911,87.869,3.82782387]
[1773159203620,10.235,87.911,87.814,20.492]
[1773159203621,3.76678423,87.909,87.829,3.82782387]
[1773159203821,10.238,87.88,87.829,3.82782387]
[1773159204021,3.76678423,87.889,87.801,3.82782387]
[1773159204316,3.76678423,87.869,87.801,3.82782387]
[1773159204517,10.242,87.848,87.803,10.247]
[1773159204723,3.76678423,87.869,87.803,10.247]
[1773159205224,3.76678423,87.869,87.808,3.82782387]
[1773159205424,3.76678423,87.869,87.79,3.82782387]
[1773159206324,10.241,87.856,87.812,10.246]
[1773159207428,10.24,87.864,87.812,14.07382387]
[1773159207626,3.76678423,87.889,87.82,3.82782387]
[1773159207929,3.76678423,87.889,87.829,0.07175363]
[1773159208527,10.24,87.861,87.82,3.82782387]
[1773159209429,159.288,87.869,87.769,20.9569287]
[1773159209628,8.88319881,87.8,87.733,13.05382209]
[1773159209933,8.88319881,87.78,87.733,13.05382209]
[1773159210522,8.88319881,87.8,87.733,13.05382209]
[1773159210730,8.88319881,87.78,87.733,13.05382209]
[1773159212430,10.25,87.776,87.748,0.07284098]
[1773159212725,8.88319881,87.78,87.748,0.07284098]
[1773159213834,19.13319881,87.78,87.748,0.07284098]
[1773159214028,10.25,87.78,87.748,0.07284098]
[1773159214233,8.88319881,87.8,87.748,0.07284098]
[1773159214438,10.249,87.79,87.748,0.07284098]
[1773159215835,8.88319881,87.8,87.748,20.4224827]
[1773159216629,10.246,87.811,87.749,20.34964172]
[1773159217436,8.88319881,87.82,87.753,20.34964123]
[1773159217636,8.88319881,87.84,87.753,20.34964123]
[1773159218838,8.88319881,87.84,87.774,20.34568131]
[1773159219038,8.88319881,87.84,87.788,0.07223628]
[1773159220341,10.245,87.818,87.788,0.07223628]
[1773159220739,8.88319881,87.84,87.788,0.07223628]
[1773159222334,10.244,87.827,87.788,0.07223628]
[1773159223940,10.245,87.819,87.788,0.07223628]
[1773159224146,8.88319881,87.84,87.788,0.07223628]
[1773159225446,10.245,87.825,87.788,0.07223628]
[1773159226050,10.243,87.836,87.788,0.07223628]
[1773159226352,8.88319881,87.84,87.788,0.07223628]
[1773159227053,10.244,87.828,87.788,0.07223628]
[1773159227754,10.243,87.837,87.788,20.40412421]
[1773159228748,8.88319881,87.84,87.788,20.40412421]
[1773159228954,10.244,87.827,87.788,20.40412421]
[1773159232254,8.88319881,87.84,87.788,20.40412421]
[1773159232554,8.88319881,87.86,87.788,20.40412421]
[1773159233152,10.241,87.856,87.807,10.247]
[1773159233355,10.241,87.856,87.808,20.33492056]
[1773159234350,10.241,87.856,87.809,10.246]
[1773159235049,10.241,87.856,87.81,20.31673274]
[1773159235254,8.88319881,87.88,87.795,20.31673274]
[1773159235459,8.88319881,87.86,87.795,20.31673274]
[1773159235957,10.243,87.841,87.798,20.31038544]
[1773159236159,8.88319881,87.86,87.798,20.31038544]
[1773159237454,10.243,87.836,87.798,20.31038544]
[1773159238058,10.242,87.846,87.798,20.31038544]
[1773159238855,8.88319881,87.86,87.771,20.31329794]
[1773159239761,8.26038157,87.861,87.791,20.31329794]